[Event "Early-Titled-Tuesday-Blitz-August-29-2023"]
[Site "Chess.com"]
[Date "2023.08.29"]
[Round "1"]
[White "NovikovaGalina"]
[Black "fastestmindalive"]
[Result "0-1"]
[WhiteElo "2400"]
[BlackElo "2721"]
[TimeControl "180+1"]
[EndTime "8:04:28 PDT"]
[Termination "fastestmindalive won by resignation"]

1. e4 {[%clk 0:02:57.6]} 1... c5 {[%clk 0:02:46.7]} 2. Nf3 {[%clk 0:02:53.2]}
2... d6 {[%clk 0:02:45.8]} 3. d4 {[%clk 0:02:53.5]} 3... cxd4 {[%clk 0:02:46.7]}
4. Nxd4 {[%clk 0:02:54.1]} 4... Nf6 {[%clk 0:02:47.2]} 5. Nc3 {[%clk 0:02:54.8]}
5... Nc6 {[%clk 0:02:47.9]} 6. Rg1 {[%clk 0:02:50.9]} 6... e5 {[%clk 0:02:46]}
7. Nb3 {[%clk 0:02:50.7]} 7... Be6 {[%clk 0:02:42.5]} 8. g4 {[%clk 0:02:50.3]}
8... d5 {[%clk 0:02:42]} 9. g5 {[%clk 0:02:45.2]} 9... Nxe4 {[%clk 0:02:41.7]}
10. Nxe4 {[%clk 0:02:45.6]} 10... dxe4 {[%clk 0:02:42.6]} 11. Qxd8+ {[%clk
0:02:41.1]} 11... Rxd8 {[%clk 0:02:37.8]} 12. Bd2 {[%clk 0:02:36.5]} 12... Nd4
{[%clk 0:02:34]} 13. O-O-O {[%clk 0:02:29.5]} 13... Nf3 {[%clk 0:02:32.6]} 14.
Rh1 {[%clk 0:02:29.2]} 14... Nxd2 {[%clk 0:02:32]} 15. Rxd2 {[%clk 0:02:30.1]}
15... Rxd2 {[%clk 0:02:31.7]} 16. Kxd2 {[%clk 0:02:31]} 16... Be7 {[%clk
0:02:26.9]} 17. Bb5+ {[%clk 0:02:30.5]} 17... Kd8 {[%clk 0:02:25.7]} 18. h4
{[%clk 0:02:27.1]} 18... h6 {[%clk 0:02:25.8]} 19. gxh6 {[%clk 0:02:13.1]} 19...
Rxh6 {[%clk 0:02:26.7]} 20. h5 {[%clk 0:02:12.9]} 20... Bg5+ {[%clk 0:02:24.8]}
21. Kc3 {[%clk 0:02:11.1]} 21... b6 {[%clk 0:02:19.4]} 22. Nd2 {[%clk 0:02:01]}
22... Bxd2+ {[%clk 0:02:16.4]} 23. Kxd2 {[%clk 0:02:01.9]} 23... Bg4 {[%clk
0:02:17]} 24. Ke3 {[%clk 0:02:00.9]} 24... Rxh5 {[%clk 0:02:16.9]} 25. Rg1
{[%clk 0:02:01.4]} 25... f5 {[%clk 0:02:16]} 26. a4 {[%clk 0:01:48.4]} 26... a5
{[%clk 0:02:13.9]} 27. Rc1 {[%clk 0:01:44.7]} 27... Rh3+ {[%clk 0:02:13.4]} 28.
Kd2 {[%clk 0:01:44.6]} 28... Kc7 {[%clk 0:02:13.4]} 29. c4 {[%clk 0:01:44.1]}
29... Kd6 {[%clk 0:02:13.2]} 30. Kc2 {[%clk 0:01:35.4]} 30... Kc5 {[%clk
0:02:12.5]} 31. Bd7 {[%clk 0:01:25.8]} 31... e3 {[%clk 0:02:11.9]} 32. fxe3
{[%clk 0:01:24.2]} 32... Rxe3 {[%clk 0:02:12.8]} 33. Kb1 {[%clk 0:01:20.9]}
33... e4 {[%clk 0:02:11.5]} 34. Rf1 {[%clk 0:01:15.7]} 34... Rf3 {[%clk
0:02:08.5]} 35. Rh1 {[%clk 0:01:15.3]} 35... Rd3 {[%clk 0:02:08]} 0-1

[Event "Early-Titled-Tuesday-Blitz-August-29-2023"]
[Site "Chess.com"]
[Date "2023.08.29"]
[Round "1"]
[White "wild3000"]
[Black "RandomNoob04"]
[Result "0-1"]
[WhiteElo "2337"]
[BlackElo "2653"]
[TimeControl "180+1"]
[EndTime "8:04:32 PDT"]
[Termination "RandomNoob04 won on time"]

1. e4 {[%clk 0:02:59]} 1... e5 {[%clk 0:03:00.5]} 2. Nf3 {[%clk 0:02:57.5]} 2...
Nf6 {[%clk 0:03:01.1]} 3. Nc3 {[%clk 0:02:57]} 3... Bc5 {[%clk 0:02:58.6]} 4. h3
{[%clk 0:02:56.4]} 4... d6 {[%clk 0:02:55.2]} 5. Bc4 {[%clk 0:02:54]} 5... O-O
{[%clk 0:02:54.6]} 6. d3 {[%clk 0:02:53.4]} 6... h6 {[%clk 0:02:50.2]} 7. Na4
{[%clk 0:02:48.1]} 7... Bb6 {[%clk 0:02:44.4]} 8. Nxb6 {[%clk 0:02:47]} 8...
axb6 {[%clk 0:02:45.3]} 9. O-O {[%clk 0:02:45.3]} 9... Be6 {[%clk 0:02:45.3]}
10. Bxe6 {[%clk 0:02:39.7]} 10... fxe6 {[%clk 0:02:46.2]} 11. Nh2 {[%clk
0:02:27.4]} 11... d5 {[%clk 0:02:41.6]} 12. Qe2 {[%clk 0:02:16.1]} 12... Nc6
{[%clk 0:02:41.6]} 13. exd5 {[%clk 0:02:04.9]} 13... exd5 {[%clk 0:02:39.5]} 14.
c3 {[%clk 0:02:04.5]} 14... Qd6 {[%clk 0:02:35.3]} 15. Ng4 {[%clk 0:01:59.7]}
15... Nxg4 {[%clk 0:02:35.2]} 16. Qxg4 {[%clk 0:01:51.9]} 16... Rf6 {[%clk
0:02:34.5]} 17. a3 {[%clk 0:01:23.2]} 17... Raf8 {[%clk 0:02:33.9]} 18. Qg3
{[%clk 0:01:21.2]} 18... Rg6 {[%clk 0:02:32.8]} 19. Qh2 {[%clk 0:01:21.2]} 19...
Qf6 {[%clk 0:02:24.3]} 0-1

[Event "Early-Titled-Tuesday-Blitz-August-29-2023"]
[Site "Chess.com"]
[Date "2023.08.29"]
[Round "1"]
[White "FairChess_on_YouTube"]
[Black "Cheer_Down"]
[Result "1-0"]
[WhiteElo "3053"]
[BlackElo "2528"]
[TimeControl "180+1"]
[EndTime "8:04:45 PDT"]
[Termination "FairChess_on_YouTube won by resignation"]

1. d4 {[%clk 0:03:00.9]} 1... d5 {[%clk 0:02:58.1]} 2. Nf3 {[%clk 0:03:00.8]}
2... Nf6 {[%clk 0:02:57.8]} 3. c4 {[%clk 0:03:00.8]} 3... e6 {[%clk 0:02:58]} 4.
Bg5 {[%clk 0:03:00.3]} 4... Nbd7 {[%clk 0:02:57]} 5. e3 {[%clk 0:03:00.1]} 5...
h6 {[%clk 0:02:57.2]} 6. Bh4 {[%clk 0:02:59.9]} 6... Be7 {[%clk 0:02:56.9]} 7.
Nc3 {[%clk 0:03:00]} 7... O-O {[%clk 0:02:56.1]} 8. Rc1 {[%clk 0:03:00.3]} 8...
c5 {[%clk 0:02:55.5]} 9. dxc5 {[%clk 0:02:57.6]} 9... Nxc5 {[%clk 0:02:49.9]}
10. cxd5 {[%clk 0:02:57.2]} 10... Nxd5 {[%clk 0:02:49.6]} 11. Nxd5 {[%clk
0:02:54.9]} 11... exd5 {[%clk 0:02:42.8]} 12. Rxc5 {[%clk 0:02:52.5]} 12... Bxh4
{[%clk 0:02:42]} 13. Rxd5 {[%clk 0:02:49.5]} 13... Qf6 {[%clk 0:02:39.5]} 14.
Nxh4 {[%clk 0:02:44.5]} 14... Qxh4 {[%clk 0:02:39.4]} 15. Qd4 {[%clk 0:02:44.2]}
15... Qe7 {[%clk 0:02:38.2]} 16. Bd3 {[%clk 0:01:55.8]} 16... Be6 {[%clk
0:02:31.4]} 17. Re5 {[%clk 0:01:54.4]} 17... Rfd8 {[%clk 0:02:10.4]} 18. Qe4
{[%clk 0:01:50.8]} 18... Qf6 {[%clk 0:02:03.3]} 19. O-O {[%clk 0:01:31.2]} 19...
Rxd3 {[%clk 0:01:48.5]} 20. Rxe6 {[%clk 0:01:31.4]} 20... Qxe6 {[%clk
0:01:47.4]} 21. Qxd3 {[%clk 0:01:31.7]} 21... Qxa2 {[%clk 0:01:47.5]} 22. Qb5
{[%clk 0:01:31.5]} 22... b6 {[%clk 0:01:45.1]} 23. Rd1 {[%clk 0:01:30.3]} 23...
Rc8 {[%clk 0:01:36.9]} 24. g3 {[%clk 0:01:29]} 24... Qe6 {[%clk 0:01:34.1]} 25.
h4 {[%clk 0:01:20.7]} 25... Qc6 {[%clk 0:01:22.4]} 26. Rd8+ {[%clk 0:01:19.8]}
26... Kh7 {[%clk 0:01:19.9]} 27. Qf5+ {[%clk 0:01:19.6]} 1-0

[Event "Early-Titled-Tuesday-Blitz-August-29-2023"]
[Site "Chess.com"]
[Date "2023.08.29"]
[Round "1"]
[White "ShiroglanTalibov"]
[Black "Laico"]
[Result "1-0"]
[WhiteElo "2811"]
[BlackElo "2434"]
[TimeControl "180+1"]
[EndTime "8:04:50 PDT"]
[Termination "ShiroglanTalibov won by resignation"]

1. e4 {[%clk 0:03:00.9]} 1... e6 {[%clk 0:02:57.7]} 2. Qe2 {[%clk 0:02:55.9]}
2... e5 {[%clk 0:02:54.9]} 3. Nf3 {[%clk 0:02:43.8]} 3... Nc6 {[%clk 0:02:54.2]}
4. g3 {[%clk 0:02:44.4]} 4... Bc5 {[%clk 0:02:48.7]} 5. Bg2 {[%clk 0:02:44.3]}
5... Nf6 {[%clk 0:02:42.9]} 6. O-O {[%clk 0:02:43.8]} 6... d6 {[%clk 0:02:42.2]}
7. h3 {[%clk 0:02:43.3]} 7... O-O {[%clk 0:02:31.1]} 8. d3 {[%clk 0:02:39.4]}
8... h6 {[%clk 0:02:30.4]} 9. Nbd2 {[%clk 0:02:38.2]} 9... Re8 {[%clk
0:02:28.3]} 10. c3 {[%clk 0:02:38]} 10... a5 {[%clk 0:02:26.4]} 11. Nc4 {[%clk
0:02:37.8]} 11... b5 {[%clk 0:02:21.1]} 12. Ne3 {[%clk 0:02:37.9]} 12... Ba6
{[%clk 0:02:20.1]} 13. Nh4 {[%clk 0:02:37.3]} 13... b4 {[%clk 0:02:17.2]} 14.
Nhf5 {[%clk 0:02:27.5]} 14... Rb8 {[%clk 0:02:06.3]} 15. Ng4 {[%clk 0:02:22.2]}
15... bxc3 {[%clk 0:01:42.1]} 16. bxc3 {[%clk 0:02:19.6]} 16... d5 {[%clk
0:01:16.9]} 17. exd5 {[%clk 0:02:02.9]} 17... Nxd5 {[%clk 0:01:05.6]} 18. Ngxh6+
{[%clk 0:02:02.9]} 18... Kf8 {[%clk 0:00:56.8]} 19. Nxg7 {[%clk 0:02:02.9]}
19... Nxc3 {[%clk 0:00:27.5]} 20. Qh5 {[%clk 0:02:02.4]} 20... Kxg7 {[%clk
0:00:20.3]} 21. Nf5+ {[%clk 0:01:59.2]} 1-0

[Event "Early-Titled-Tuesday-Blitz-August-29-2023"]
[Site "Chess.com"]
[Date "2023.08.29"]
[Round "1"]
[White "DenLaz"]
[Black "Bilan_Danila"]
[Result "1-0"]
[WhiteElo "3047"]
[BlackElo "2520"]
[TimeControl "180+1"]
[EndTime "8:04:51 PDT"]
[Termination "DenLaz won on time"]

1. d4 {[%clk 0:03:00.9]} 1... d5 {[%clk 0:02:57.8]} 2. c4 {[%clk 0:03:01.4]}
2... c6 {[%clk 0:02:57.7]} 3. Nf3 {[%clk 0:03:02]} 3... Nf6 {[%clk 0:02:57.6]}
4. Qc2 {[%clk 0:03:01.3]} 4... g6 {[%clk 0:02:54.3]} 5. cxd5 {[%clk 0:03:00.9]}
5... cxd5 {[%clk 0:02:52.8]} 6. Bf4 {[%clk 0:03:01]} 6... Nc6 {[%clk 0:02:50.7]}
7. Nc3 {[%clk 0:03:01.1]} 7... Bf5 {[%clk 0:02:49.6]} 8. Qb3 {[%clk 0:02:59.5]}
8... Na5 {[%clk 0:02:40.8]} 9. Qa4+ {[%clk 0:02:50.4]} 9... Bd7 {[%clk
0:02:39.4]} 10. Qc2 {[%clk 0:02:47.2]} 10... Bf5 {[%clk 0:02:38]} 11. e4 {[%clk
0:02:43.1]} 11... dxe4 {[%clk 0:02:21]} 12. Bb5+ {[%clk 0:02:29.2]} 12... Bd7
{[%clk 0:02:19]} 13. Ne5 {[%clk 0:02:28.3]} 13... a6 {[%clk 0:01:49.8]} 14. Nxd7
{[%clk 0:02:25.5]} 14... Nxd7 {[%clk 0:01:50.7]} 15. Nd5 {[%clk 0:02:20.1]}
15... Bg7 {[%clk 0:00:18.7]} 16. Nc7+ {[%clk 0:02:14.2]} 16... Kf8 {[%clk
0:00:18.2]} 17. Bxd7 {[%clk 0:02:12.2]} 17... Qxd7 {[%clk 0:00:03.9]} 18. Nxa8
{[%clk 0:02:11.1]} 18... Bxd4 {[%clk 0:00:03.3]} 19. Rd1 {[%clk 0:02:06.3]}
19... e5 {[%clk 0:00:01.8]} 20. Bxe5 {[%clk 0:02:04.9]} 1-0

[Event "Early-Titled-Tuesday-Blitz-August-29-2023"]
[Site "Chess.com"]
[Date "2023.08.29"]
[Round "1"]
[White "Arteler"]
[Black "Speshka"]
[Result "0-1"]
[WhiteElo "2198"]
[BlackElo "2581"]
[TimeControl "180+1"]
[EndTime "8:04:52 PDT"]
[Termination "Speshka won on time"]

1. e4 {[%clk 0:01:45.6]} 1... c5 {[%clk 0:02:58.8]} 2. Nf3 {[%clk 0:01:38.4]}
2... a6 {[%clk 0:02:58]} 3. c3 {[%clk 0:01:35.6]} 3... d5 {[%clk 0:02:56.3]} 4.
exd5 {[%clk 0:01:34]} 4... Qxd5 {[%clk 0:02:57.2]} 5. d4 {[%clk 0:01:33.8]} 5...
e6 {[%clk 0:02:57.6]} 6. Be3 {[%clk 0:01:27.6]} 6... cxd4 {[%clk 0:02:55.4]} 7.
Nxd4 {[%clk 0:01:24.5]} 7... e5 {[%clk 0:02:51.6]} 8. Nf3 {[%clk 0:01:24.2]}
8... Qxd1+ {[%clk 0:02:51.3]} 9. Kxd1 {[%clk 0:01:25.1]} 9... Bg4 {[%clk
0:02:50.5]} 10. Be2 {[%clk 0:01:18.4]} 10... Nc6 {[%clk 0:02:49.5]} 11. Nbd2
{[%clk 0:01:17.5]} 11... Nf6 {[%clk 0:02:47.1]} 12. h3 {[%clk 0:01:09.3]} 12...
Bf5 {[%clk 0:02:44.7]} 13. Nc4 {[%clk 0:01:04.3]} 13... O-O-O+ {[%clk
0:02:42.9]} 14. Ke1 {[%clk 0:01:04.5]} 14... Nd5 {[%clk 0:02:40.3]} 15. Nfxe5
{[%clk 0:00:52.6]} 15... Nxe5 {[%clk 0:02:38.9]} 16. Nxe5 {[%clk 0:00:51.9]}
16... Nxe3 {[%clk 0:02:39.2]} 17. fxe3 {[%clk 0:00:52.7]} 17... Bd6 {[%clk
0:02:38.7]} 18. Nxf7 {[%clk 0:00:34.4]} 18... Bg3+ {[%clk 0:02:38.1]} 19. Kf1
{[%clk 0:00:33.9]} 19... Rdf8 {[%clk 0:02:35.1]} 20. Nxh8 {[%clk 0:00:31.2]}
20... Bd3+ {[%clk 0:02:34.9]} 21. Kg1 {[%clk 0:00:27.4]} 21... Bxe2 {[%clk
0:02:34.9]} 22. h4 {[%clk 0:00:15.3]} 22... Bf2+ {[%clk 0:02:33.7]} 23. Kh2
{[%clk 0:00:14.2]} 23... Rxh8 {[%clk 0:02:34.4]} 24. Rac1 {[%clk 0:00:12]} 24...
Re8 {[%clk 0:02:30.6]} 25. Rc2 {[%clk 0:00:08.5]} 25... Rxe3 {[%clk 0:02:29.9]}
26. b3 {[%clk 0:00:02.8]} 26... Bg3+ {[%clk 0:02:29]} 27. Kh3 {[%clk 0:00:01.9]}
27... Be5+ {[%clk 0:02:26.6]} 0-1

[Event "Early-Titled-Tuesday-Blitz-August-29-2023"]
[Site "Chess.com"]
[Date "2023.08.29"]
[Round "1"]
[White "thedjoker98"]
[Black "Dewarfd"]
[Result "1-0"]
[WhiteElo "2583"]
[BlackElo "2206"]
[TimeControl "180+1"]
[EndTime "8:04:56 PDT"]
[Termination "thedjoker98 won by resignation"]

1. d4 {[%clk 0:02:59.7]} 1... d5 {[%clk 0:03:00.2]} 2. c4 {[%clk 0:02:59.8]}
2... e6 {[%clk 0:03:00.4]} 3. Nc3 {[%clk 0:02:59.9]} 3... c5 {[%clk 0:03:00.9]}
4. cxd5 {[%clk 0:02:59.6]} 4... exd5 {[%clk 0:03:01.7]} 5. Nf3 {[%clk
0:02:59.2]} 5... Nc6 {[%clk 0:03:01.7]} 6. g3 {[%clk 0:02:59.7]} 6... Nf6 {[%clk
0:03:01.1]} 7. Bg2 {[%clk 0:02:59.3]} 7... Be7 {[%clk 0:03:01.2]} 8. O-O {[%clk
0:02:58.8]} 8... O-O {[%clk 0:03:01.1]} 9. Bg5 {[%clk 0:02:59.5]} 9... c4 {[%clk
0:03:00.7]} 10. Ne5 {[%clk 0:03:00]} 10... Be6 {[%clk 0:03:01]} 11. Nxc6 {[%clk
0:02:54.6]} 11... bxc6 {[%clk 0:03:00.6]} 12. b3 {[%clk 0:02:55.5]} 12... cxb3
{[%clk 0:02:55.2]} 13. axb3 {[%clk 0:02:56.4]} 13... h6 {[%clk 0:02:49.1]} 14.
Bd2 {[%clk 0:02:53.5]} 14... Qb6 {[%clk 0:02:35.2]} 15. e3 {[%clk 0:02:48.3]}
15... Rfb8 {[%clk 0:02:34.6]} 16. Rb1 {[%clk 0:02:48.7]} 16... Bf5 {[%clk
0:02:30.3]} 17. Rb2 {[%clk 0:02:43.7]} 17... Ba3 {[%clk 0:02:29.8]} 18. Na4
{[%clk 0:02:44.1]} 18... Qb5 {[%clk 0:02:09.9]} 19. Ra2 {[%clk 0:02:44]} 19...
Qxb3 {[%clk 0:02:04.1]} 20. Qxb3 {[%clk 0:02:43.3]} 20... Rxb3 {[%clk 0:02:05]}
21. Rfa1 {[%clk 0:02:37.6]} 21... Bd6 {[%clk 0:02:03.9]} 22. Nc5 {[%clk
0:02:37.4]} 22... Bxc5 {[%clk 0:02:04.1]} 23. dxc5 {[%clk 0:02:38.3]} 23... Rb7
{[%clk 0:02:00.9]} 24. Bc3 {[%clk 0:02:33.9]} 24... Ne4 {[%clk 0:01:53.3]} 25.
Bd4 {[%clk 0:02:34.1]} 25... Be6 {[%clk 0:01:51.6]} 26. Ra6 {[%clk 0:02:33.7]}
26... Bd7 {[%clk 0:01:43.1]} 27. h4 {[%clk 0:02:24.5]} 27... g5 {[%clk
0:01:34.5]} 28. hxg5 {[%clk 0:02:23.7]} 28... hxg5 {[%clk 0:01:34.9]} 29. Bf3
{[%clk 0:02:22.9]} 29... g4 {[%clk 0:01:32.6]} 30. Be2 {[%clk 0:02:22.7]} 30...
f5 {[%clk 0:01:31.7]} 31. Kg2 {[%clk 0:02:22.5]} 31... Kf7 {[%clk 0:01:26.4]}
32. Rh1 {[%clk 0:02:22.3]} 32... Kg6 {[%clk 0:01:25.9]} 33. Rh4 {[%clk
0:02:18.9]} 33... Rb1 {[%clk 0:01:17.3]} 34. Bd3 {[%clk 0:01:53.8]} 34... Ng5
{[%clk 0:01:09.1]} 35. Bxb1 {[%clk 0:01:51.8]} 35... Nf3 {[%clk 0:01:07.6]} 36.
Rxg4+ {[%clk 0:01:51.8]} 36... Kh5 {[%clk 0:01:04.9]} 37. Rg7 {[%clk 0:01:47.2]}
1-0

[Event "Early-Titled-Tuesday-Blitz-August-29-2023"]
[Site "Chess.com"]
[Date "2023.08.29"]
[Round "1"]
[White "YellowJacek"]
[Black "Ajedrez_con_German"]
[Result "1-0"]
[WhiteElo "2369"]
[BlackElo "2650"]
[TimeControl "180+1"]
[EndTime "8:04:58 PDT"]
[Termination "YellowJacek won by resignation"]

1. e4 {[%clk 0:02:55.9]} 1... d5 {[%clk 0:02:43.8]} 2. exd5 {[%clk 0:02:52.6]}
2... Qxd5 {[%clk 0:02:43.3]} 3. Nc3 {[%clk 0:02:52.7]} 3... Qd8 {[%clk
0:02:42.7]} 4. d4 {[%clk 0:02:52.7]} 4... Nf6 {[%clk 0:02:42.3]} 5. Bc4 {[%clk
0:02:52.4]} 5... e6 {[%clk 0:02:38.8]} 6. Nf3 {[%clk 0:02:52.4]} 6... Be7 {[%clk
0:02:38.4]} 7. Bg5 {[%clk 0:02:45.3]} 7... O-O {[%clk 0:02:38.1]} 8. Qe2 {[%clk
0:02:43.3]} 8... b6 {[%clk 0:02:32.2]} 9. O-O-O {[%clk 0:02:40.5]} 9... Bb7
{[%clk 0:02:27.2]} 10. Ne5 {[%clk 0:02:35.8]} 10... Nbd7 {[%clk 0:02:21.2]} 11.
h4 {[%clk 0:02:29.9]} 11... c6 {[%clk 0:02:14.9]} 12. Kb1 {[%clk 0:02:24.9]}
12... Nd5 {[%clk 0:02:01]} 13. Nxd5 {[%clk 0:02:19.4]} 13... cxd5 {[%clk
0:02:00.3]} 14. Bd3 {[%clk 0:02:19.5]} 14... Nxe5 {[%clk 0:01:44.9]} 15. dxe5
{[%clk 0:02:18.5]} 15... a5 {[%clk 0:01:33]} 16. Rh3 {[%clk 0:02:07.6]} 16... g6
{[%clk 0:01:24.7]} 17. Bh6 {[%clk 0:01:47.9]} 17... Re8 {[%clk 0:01:20.5]} 18.
h5 {[%clk 0:01:48.3]} 18... Bg5 {[%clk 0:01:18.4]} 19. hxg6 {[%clk 0:01:45.9]}
19... hxg6 {[%clk 0:01:18.8]} 20. Rdh1 {[%clk 0:01:38.3]} 20... Bxh6 {[%clk
0:01:11.5]} 21. Rxh6 {[%clk 0:01:39.2]} 21... Kf8 {[%clk 0:01:10]} 22. Bxg6
{[%clk 0:01:37.3]} 22... Qg5 {[%clk 0:00:56.1]} 23. Bxf7 {[%clk 0:01:27.3]}
23... Kxf7 {[%clk 0:00:56.5]} 24. Rh7+ {[%clk 0:01:26.6]} 24... Kg6 {[%clk
0:00:57.1]} 25. Qd3+ {[%clk 0:01:21.5]} 25... Qf5 {[%clk 0:00:54.5]} 26. R1h6+
{[%clk 0:01:20.2]} 26... Kg5 {[%clk 0:00:54.6]} 1-0

[Event "Early-Titled-Tuesday-Blitz-August-29-2023"]
[Site "Chess.com"]
[Date "2023.08.29"]
[Round "1"]
[White "leopato"]
[Black "Mesa_1"]
[Result "0-1"]
[WhiteElo "2132"]
[BlackElo "2567"]
[TimeControl "180+1"]
[EndTime "8:04:58 PDT"]
[Termination "Mesa_1 won by resignation"]

1. e4 {[%clk 0:02:59.7]} 1... d6 {[%clk 0:02:58.8]} 2. d4 {[%clk 0:02:57.9]}
2... Nf6 {[%clk 0:02:59.5]} 3. Nc3 {[%clk 0:02:57.1]} 3... Nc6 {[%clk
0:03:00.2]} 4. Bb5 {[%clk 0:02:54.7]} 4... a6 {[%clk 0:02:58.6]} 5. Bxc6+ {[%clk
0:02:49.7]} 5... bxc6 {[%clk 0:02:59.5]} 6. Nf3 {[%clk 0:02:49.2]} 6... g6
{[%clk 0:02:58.4]} 7. h3 {[%clk 0:02:46.1]} 7... Bg7 {[%clk 0:02:58.4]} 8. O-O
{[%clk 0:02:45]} 8... O-O {[%clk 0:02:59.1]} 9. Re1 {[%clk 0:02:41.1]} 9... a5
{[%clk 0:02:59.5]} 10. Bg5 {[%clk 0:02:36.6]} 10... h6 {[%clk 0:02:59.3]} 11.
Be3 {[%clk 0:02:25.6]} 11... Kh7 {[%clk 0:02:57]} 12. Rb1 {[%clk 0:02:19.2]}
12... Nd7 {[%clk 0:02:57.1]} 13. Qd2 {[%clk 0:02:11.8]} 13... a4 {[%clk
0:02:54.9]} 14. a3 {[%clk 0:02:01.6]} 14... Nb6 {[%clk 0:02:54.5]} 15. Qc1
{[%clk 0:01:43.7]} 15... Nc4 {[%clk 0:02:53.4]} 16. Bf4 {[%clk 0:01:43.5]} 16...
e5 {[%clk 0:02:51.7]} 17. dxe5 {[%clk 0:01:43]} 17... dxe5 {[%clk 0:02:52.6]}
18. Rd1 {[%clk 0:01:39]} 18... Qe7 {[%clk 0:02:52.8]} 19. Bg3 {[%clk 0:01:36.4]}
19... Be6 {[%clk 0:02:50.9]} 20. Rd3 {[%clk 0:01:28.9]} 20... f5 {[%clk
0:02:49]} 21. Qe1 {[%clk 0:01:00.1]} 21... f4 {[%clk 0:02:46.1]} 22. Bh2 {[%clk
0:00:57.2]} 22... g5 {[%clk 0:02:46.7]} 23. Rbd1 {[%clk 0:00:52.4]} 23... Nxb2
{[%clk 0:02:42.8]} 24. Qd2 {[%clk 0:00:50]} 24... Nxd3 {[%clk 0:02:41.8]} 25.
cxd3 {[%clk 0:00:44.6]} 25... Qxa3 {[%clk 0:02:39.8]} 26. d4 {[%clk 0:00:33.9]}
26... exd4 {[%clk 0:02:33.7]} 27. Nxd4 {[%clk 0:00:33.3]} 27... Rad8 {[%clk
0:02:34.4]} 28. Nce2 {[%clk 0:00:30.1]} 28... c5 {[%clk 0:02:33.4]} 29. Nxe6
{[%clk 0:00:21.3]} 29... Rxd2 {[%clk 0:02:32.4]} 30. Nxf8+ {[%clk 0:00:20.6]}
30... Bxf8 {[%clk 0:02:31.8]} 31. Rxd2 {[%clk 0:00:16.4]} 31... Qa1+ {[%clk
0:02:32.1]} 32. Nc1 {[%clk 0:00:11]} 32... Qxc1+ {[%clk 0:02:31.9]} 0-1

[Event "Early-Titled-Tuesday-Blitz-August-29-2023"]
[Site "Chess.com"]
[Date "2023.08.29"]
[Round "1"]
[White "CrazyAdvenTures"]
[Black "Colombiano07"]
[Result "1-0"]
[WhiteElo "2704"]
[BlackElo "2386"]
[TimeControl "180+1"]
[EndTime "8:05:02 PDT"]
[Termination "CrazyAdvenTures won by resignation"]

1. e4 {[%clk 0:03:00.9]} 1... c6 {[%clk 0:02:59.1]} 2. Nc3 {[%clk 0:02:59.3]}
2... d5 {[%clk 0:03:00]} 3. Nf3 {[%clk 0:03:00.2]} 3... Bg4 {[%clk 0:02:58.8]}
4. h3 {[%clk 0:03:00.2]} 4... Bxf3 {[%clk 0:02:58.9]} 5. Qxf3 {[%clk 0:03:01.1]}
5... e6 {[%clk 0:02:59.8]} 6. d4 {[%clk 0:02:59]} 6... dxe4 {[%clk 0:02:59.3]}
7. Qxe4 {[%clk 0:02:57]} 7... Nd7 {[%clk 0:03:00.2]} 8. Bd3 {[%clk 0:02:50.2]}
8... Bb4 {[%clk 0:02:58.9]} 9. O-O {[%clk 0:02:41.3]} 9... Ngf6 {[%clk
0:02:57.6]} 10. Qf3 {[%clk 0:02:26.4]} 10... O-O {[%clk 0:02:57.3]} 11. Ne2
{[%clk 0:02:22.8]} 11... Qa5 {[%clk 0:02:55]} 12. c3 {[%clk 0:02:19.7]} 12...
Be7 {[%clk 0:02:54.1]} 13. Ng3 {[%clk 0:02:11]} 13... Qd5 {[%clk 0:02:52.3]} 14.
Ne4 {[%clk 0:02:09]} 14... c5 {[%clk 0:02:42.3]} 15. Be3 {[%clk 0:01:56.9]}
15... b6 {[%clk 0:02:38.8]} 16. Rfd1 {[%clk 0:01:53.9]} 16... cxd4 {[%clk
0:02:33.8]} 17. Bxd4 {[%clk 0:01:54.2]} 17... Qh5 {[%clk 0:02:15.8]} 18. g4
{[%clk 0:01:37]} 18... Qa5 {[%clk 0:01:55.4]} 19. Bc2 {[%clk 0:01:04.6]} 19...
Rfd8 {[%clk 0:01:50.9]} 20. Kg2 {[%clk 0:00:49]} 20... Nxe4 {[%clk 0:01:49.6]}
21. Qxe4 {[%clk 0:00:49.9]} 21... Nf8 {[%clk 0:01:49.7]} 22. a4 {[%clk
0:00:44.9]} 22... Qd5 {[%clk 0:01:46.2]} 23. Qxd5 {[%clk 0:00:44.3]} 23... Rxd5
{[%clk 0:01:47.1]} 24. Be4 {[%clk 0:00:43.4]} 24... Rad8 {[%clk 0:01:37.3]} 25.
Bxd5 {[%clk 0:00:43.2]} 25... Rxd5 {[%clk 0:01:38.2]} 26. a5 {[%clk 0:00:43.4]}
26... Bc5 {[%clk 0:01:34.7]} 27. axb6 {[%clk 0:00:40.5]} 27... axb6 {[%clk
0:01:34]} 28. Bxc5 {[%clk 0:00:40.1]} 28... Rxc5 {[%clk 0:01:34.4]} 29. Ra8
{[%clk 0:00:40]} 1-0

[Event "Early-Titled-Tuesday-Blitz-August-29-2023"]
[Site "Chess.com"]
[Date "2023.08.29"]
[Round "1"]
[White "nitpicker"]
[Black "SaqoChess_Twitch"]
[Result "0-1"]
[WhiteElo "2277"]
[BlackElo "2615"]
[TimeControl "180+1"]
[EndTime "8:05:14 PDT"]
[Termination "SaqoChess_Twitch won by checkmate"]

1. d4 {[%clk 0:03:00.2]} 1... d5 {[%clk 0:02:08.1]} 2. c4 {[%clk 0:02:59.7]}
2... e6 {[%clk 0:02:05.3]} 3. Nf3 {[%clk 0:02:59.6]} 3... Nf6 {[%clk 0:02:04.9]}
4. g3 {[%clk 0:02:59.8]} 4... Be7 {[%clk 0:02:05.2]} 5. Bg2 {[%clk 0:02:59.9]}
5... O-O {[%clk 0:02:05.5]} 6. O-O {[%clk 0:03:00.4]} 6... dxc4 {[%clk
0:02:05.5]} 7. Ne5 {[%clk 0:03:00.9]} 7... Nc6 {[%clk 0:02:04.8]} 8. Bxc6 {[%clk
0:03:00.9]} 8... bxc6 {[%clk 0:02:05.7]} 9. Nxc6 {[%clk 0:03:01.1]} 9... Qe8
{[%clk 0:02:06.5]} 10. Nxe7+ {[%clk 0:03:01.7]} 10... Qxe7 {[%clk 0:02:07.4]}
11. Qa4 {[%clk 0:03:01.2]} 11... c5 {[%clk 0:02:08]} 12. Qxc4 {[%clk 0:02:54.5]}
12... cxd4 {[%clk 0:02:06.8]} 13. Qxd4 {[%clk 0:02:55.1]} 13... e5 {[%clk
0:02:07.6]} 14. Qh4 {[%clk 0:02:54.7]} 14... h6 {[%clk 0:02:08.3]} 15. Nc3
{[%clk 0:02:51.3]} 15... Qe6 {[%clk 0:02:05.8]} 16. Be3 {[%clk 0:02:22.5]} 16...
a5 {[%clk 0:02:01.6]} 17. Rfd1 {[%clk 0:02:09.5]} 17... Rb8 {[%clk 0:02:01.1]}
18. Rd2 {[%clk 0:02:05.9]} 18... Rb4 {[%clk 0:02:00.3]} 19. f4 {[%clk
0:01:47.8]} 19... exf4 {[%clk 0:01:59.4]} 20. Bxf4 {[%clk 0:01:45.9]} 20... g5
{[%clk 0:01:58]} 21. Qxh6 {[%clk 0:01:36.8]} 21... gxf4 {[%clk 0:01:55.1]} 22.
Qg5+ {[%clk 0:01:14.9]} 22... Kh8 {[%clk 0:01:52.8]} 23. Nd5 {[%clk 0:01:06.2]}
23... Nxd5 {[%clk 0:01:41]} 24. Rxd5 {[%clk 0:01:06]} 24... Qe3+ {[%clk
0:01:23.7]} 25. Kf1 {[%clk 0:00:59.5]} 25... Bh3+ {[%clk 0:01:23.1]} 26. Ke1
{[%clk 0:00:58.8]} 26... Qg1+ {[%clk 0:01:20.6]} 27. Kd2 {[%clk 0:00:57.9]}
27... Rd4+ {[%clk 0:01:21.2]} 28. Kc2 {[%clk 0:00:50.6]} 28... Rc8+ {[%clk
0:01:19.5]} 29. Kb3 {[%clk 0:00:38.6]} 29... Qe3# {[%clk 0:01:18.6]} 0-1